[Event "Summer Prague Open-A 2024"]
[Site "Prague"]
[Date "2024.08.04"]
[Round "4.24"]
[White "Zhakan, Erasyl"]
[Black "Toure, Vasanth"]
[Result "1-0"]
[Annotator "RC"]
[ECO "C22"]
[WhiteElo "1962"]
[BlackElo "2176"]
[PlyCount "75"]
[EventDate "2024.08.02"]
[EventType "swiss"]
[EventCountry "CZE"]
[SourceTitle "playchess.com"]
[Source "ChessBase"]
[SourceQuality "1"]
[TimeControl "40/5400+30:1800+30"]

1. e4 {[%emt 0:04:11]} e5 {[%emt 0:01:12]} 2. d4 {[%emt 0:00:03]} exd4 {[%emt 0:00:09]} 3. Qxd4 {[%emt 0:00:02]} Nc6 {[%emt 0:00:10]} 4. Qe3 {[%emt 0:00:02]} Nf6 {[%emt 0:03:38]} 5. Nc3 {[%emt 0:00:07]} Bb4 {[%emt 0:00:07]} 6. Bd2 {[%emt 0:00:04]} O-O {[%emt 0:00:06]} 7. O-O-O {[%emt 0:00:14]} Re8 {[%emt 0:00:06]} 8. Bc4 {[%emt 0:00:13]} d6 {[%emt 0:08:13]} 9. Nf3 {[%emt 0:00:26]} a6 {[%emt 0:13:26]} 10. Qf4 {[%emt 0:13:39]} Bg4 {[%emt 0:52:31]} 11. h3 {[%emt 0:18:11]} Bh5 {[%emt 0:01:23]} 12. Rhe1 {[%emt 0:21:07]} Bg6 {[%emt 0:05:02]} 13. a3 Ba5 {[%emt 0:02:59]} 14. Bb3 {[%emt 0:23:33]} Ne5 {[%emt 0:01:29]} 15. Nxe5 {[%emt 0:00:59]} dxe5 {[%emt 0:00:03]} 16. Qf3 {[%emt 0:02:33]} Qc8 {[%emt 0:02:28]} 17. Nb1 {[%emt 0:04:06]} Bxd2+ {[%emt 0:01:16]} 18. Nxd2 {[%emt 0:00:01]} b5 {[%emt 0:00:46]} 19. Nf1 {[%emt 0:00:20]} Qb7 {[%emt 0:00:14]} 20. Bd5 {[%emt 0:02:32]} c6 {[%emt 0:00:05]} 21. Ba2 {[%emt 0:00:00]} Rad8 {[%emt 0:02:11]} 22. Ng3 {[%emt 0:01:23]} h6 {[%emt 0:01:40]} 23. Qe3 {[%emt 0:01:24]} Qc7 {[%emt 0:00:41]} 24. f3 {[%emt 0:00:49]} Rb8 {[%emt 0:00:07]} 25. Qc5 {[%emt 0:00:21]} Rbd8 {[%emt 0:00:54]} 26. Nf1 {[%emt 0:01:17]} Nd7 {[%emt 0:00:48]} 27. Qd6 {[%emt 0:00:11]} Qxd6 {[%emt 0:01:35]} 28. Rxd6 {[%emt 0:00:01]} Kf8 {[%emt 0:00:20]} 29. Red1 {[%emt 0:00:33]} Ke7 {[%emt 0:00:13]} 30. Rxc6 {[%emt 0:00:05]} Nb8 {[%emt 0:00:38]} 31. Rc7+ {[%emt 0:00:18]} Kf6 {[%emt 0:00:45]} 32. Ne3 {[%emt 0:00:26]} Rxd1+ {[%emt 0:00:40]} 33. Kxd1 {[%emt 0:00:01]} Rd8+ {[%emt 0:00:25]} 34. Ke2 {[%emt 0:02:28]} Nd7 {[%emt 0:00:21]} 35. Ng4+ {[%emt 0:01:13]} Kg5 {[%emt 0:00:11]} 36. g3 {[%emt 0:00:28]} Bh5 {[%emt 0:00:26]} 37. h4+ {[%emt 0:00:01]} Kg6 {[%emt 0:00:12]} 38. Rxd7 {[%emt 0:00:08]} 1-0

[Event "Summer Prague Open-A 2024"]
[Site "Prague"]
[Date "2024.08.04"]
[Round "4.25"]
[White "Zelezny, Jan"]
[Black "Czaeczine, Anne"]
[Result "0-1"]
[Annotator "RC"]
[ECO "B24"]
[WhiteElo "1965"]
[BlackElo "2172"]
[PlyCount "152"]
[EventDate "2024.08.02"]
[EventType "swiss"]
[EventCountry "CZE"]
[SourceTitle "playchess.com"]
[Source "ChessBase"]
[SourceQuality "1"]
[TimeControl "40/5400+30:1800+30"]

1. e4 {[%emt 0:00:03]} c5 {[%emt 0:00:08]} 2. Nc3 {[%emt 0:00:04]} Nc6 {[%emt 0:00:21]} 3. g3 {[%emt 0:00:04]} g6 {[%emt 0:00:19]} 4. Bg2 {[%emt 0:00:05]} Bg7 {[%emt 0:00:04]} 5. d3 {[%emt 0:00:03]} Rb8 {[%emt 0:00:35]} 6. Be3 {[%emt 0:00:12]} b5 {[%emt 0:00:24]} 7. Qd2 {[%emt 0:00:07]} b4 {[%emt 0:00:18]} 8. Nd1 {[%emt 0:00:05]} d6 {[%emt 0:00:03]} 9. Ne2 {[%emt 0:00:28]} h5 {[%emt 0:00:12]} 10. h3 {[%emt 0:00:05]} Nd4 {[%emt 0:01:22]} 11. O-O {[%emt 0:01:54]} e5 {[%emt 0:01:04]} 12. f4 {[%emt 0:00:56]} Ne7 {[%emt 0:02:28]} 13. fxe5 {[%emt 0:03:50]} Bxe5 {[%emt 0:06:26]} 14. Bf4 {[%emt 0:00:15]} Bg7 {[%emt 0:11:52]} 15. c3 {[%emt 0:05:47]} Nxe2+ {[%emt 0:05:57]} 16. Qxe2 {[%emt 0:00:07]} bxc3 {[%emt 0:00:07]} 17. bxc3 {[%emt 0:00:06]} Be6 {[%emt 0:01:16]} 18. e5 {[%emt 0:05:16]} d5 {[%emt 0:06:04]} 19. Bg5 {[%emt 0:04:09]} Qc7 {[%emt 0:17:37]} 20. Bf4 {[%emt 0:19:11]} O-O {[%emt 0:16:32]} 21. Nf2 {[%emt 0:03:22]} Nc6 {[%emt 0:02:26]} 22. Rfe1 {[%emt 0:02:48]} Rfe8 {[%emt 0:03:13]} 23. Rad1 {[%emt 0:03:22]} Rb6 {[%emt 0:04:09]} 24. d4 {[%emt 0:05:17]} cxd4 {[%emt 0:00:58]} 25. cxd4 {[%emt 0:00:05]} Reb8 {[%emt 0:01:51]} 26. Rd2 {[%emt 0:01:06]} Qb7 {[%emt 0:04:48]} 27. Be3 {[%emt 0:02:56]} Na5 {[%emt 0:02:16]} 28. Rc1 {[%emt 0:08:56]} Rb2 {[%emt 0:01:58]} 29. Nd3 {[%emt 0:01:25]} Rxd2 {[%emt 0:00:24]} 30. Qxd2 {[%emt 0:00:55]} Qb5 {[%emt 0:00:25]} 31. Rc5 {[%emt 0:06:08]} Qb1+ {[%emt 0:00:04]} 32. Rc1 {[%emt 0:00:08]} Qb6 {[%emt 0:00:53]} 33. Bf2 {[%emt 0:03:13]} Kh7 {[%emt 0:01:00]} 34. Nf4 {[%emt 0:03:30]} Bh6 {[%emt 0:00:32]} 35. Bf1 {[%emt 0:06:27]} Nc6 {[%emt 0:00:12]} 36. Qc3 {[%emt 0:01:46]} Bxf4 {[%emt 0:00:26]} 37. gxf4 {[%emt 0:00:09]} Ne7 {[%emt 0:00:51]} 38. Qc5 {[%emt 0:05:03]} Nf5 {[%emt 0:00:56]} 39. Qxb6 {[%emt 0:02:27]} Rxb6 {[%emt 0:00:07]} 40. Rc7 {[%emt 0:01:35]} a6 {[%emt 0:07:17]} 41. Ra7 {[%emt 0:31:09]} Rb4 {[%emt 0:09:12]} 42. Rxa6 {[%emt 0:00:00]} Nxd4 {[%emt 0:00:05]} 43. a3 {[%emt 0:00:00]} Nf3+ {[%emt 0:00:03]} 44. Kg2 {[%emt 0:00:00]} Rxf4 {[%emt 0:00:04]} 45. Bg3 {[%emt 0:00:00]} Nh4+ {[%emt 0:00:25]} 46. Kg1 {[%emt 0:00:00]} Re4 {[%emt 0:02:08]} 47. Kf2 {[%emt 0:00:00]} Nf5 {[%emt 0:00:51]} 48. Bh2 {[%emt 0:00:00]} Rd4 {[%emt 0:06:27]} 49. Bg1 {[%emt 0:00:00]} Rd2+ {[%emt 0:00:54]} 50. Ke1 {[%emt 0:00:00]} Ra2 {[%emt 0:00:23]} 51. a4 {[%emt 0:00:00]} Ng3 {[%emt 0:00:38]} 52. Bb5 {[%emt 0:00:00]} Bxh3 {[%emt 0:02:32]} 53. Ra7 {[%emt 0:00:00]} Ra1+ {[%emt 0:00:41]} 54. Kf2 {[%emt 0:00:00]} Ne4+ {[%emt 0:00:01]} 55. Ke3 {[%emt 0:00:00]} Rxg1 {[%emt 0:00:40]} 56. Rxf7+ {[%emt 0:00:00]} Kh6 {[%emt 0:00:25]} 57. a5 {[%emt 0:00:00]} Re1+ {[%emt 0:02:11]} 58. Kd4 {[%emt 0:00:00]} Rd1+ {[%emt 0:00:14]} 59. Ke3 {[%emt 0:00:09]} Nc3 {[%emt 0:00:37]} 60. Bd3 {[%emt 0:01:33]} Ra1 {[%emt 0:02:11]} 61. a6 {[%emt 0:00:33]} Ra5 {[%emt 0:01:43]} 62. Kd4 {[%emt 0:02:50]} Ne4 {[%emt 0:01:03]} 63. a7 {[%emt 0:01:56]} Ng5 {[%emt 0:00:09]} 64. Re7 {[%emt 0:00:21]} Ne6+ {[%emt 0:00:23]} 65. Kc3 {[%emt 0:00:41]} Nd8 {[%emt 0:02:01]} 66. Bb5 {[%emt 0:00:09]} d4+ {[%emt 0:03:21]} 67. Kb4 {[%emt 0:00:13]} Ra1 {[%emt 0:00:30]} 68. Ba4 {[%emt 0:00:36]} Bg2 {[%emt 0:00:21]} 69. Rc7 {[%emt 0:01:29]} Kg5 {[%emt 0:01:35]} 70. Rc8 {[%emt 0:04:24]} Nc6+ {[%emt 0:00:56]} 71. Bxc6 {[%emt 0:00:16]} Bxc6 {[%emt 0:00:02]} 72. Rxc6 {[%emt 0:00:06]} Rxa7 {[%emt 0:00:02]} 73. Kc5 {[%emt 0:00:12]} d3 {[%emt 0:01:15]} 74. Rd6 {[%emt 0:00:31]} Kf5 {[%emt 0:01:21]} 75. Kd4 {[%emt 0:01:53]} d2 {[%emt 0:00:21]} 76. Ke3 {[%emt 0:01:59]} Kxe5 {[%emt 0:00:08]} 0-1

[Event "Summer Prague Open-A 2024"]
[Site "Prague"]
[Date "2024.08.04"]
[Round "4.26"]
[White "Starcevic, Danijel"]
[Black "Kotal, Vaclav"]
[Result "1/2-1/2"]
[Annotator "RC"]
[ECO "E04"]
[WhiteElo "1957"]
[BlackElo "2151"]
[PlyCount "119"]
[EventDate "2024.08.02"]
[EventType "swiss"]
[EventCountry "CZE"]
[SourceTitle "playchess.com"]
[Source "ChessBase"]
[SourceQuality "1"]
[TimeControl "40/5400+30:1800+30"]

1. c4 {[%emt 0:00:08]} e6 {[%emt 0:00:09]} 2. g3 {[%emt 0:00:31]} d5 {[%emt 0:00:14]} 3. Bg2 {[%emt 0:01:08]} Nf6 {[%emt 0:00:15]} 4. d4 {[%emt 0:01:04]} dxc4 {[%emt 0:00:30]} 5. Nf3 {[%emt 0:00:24]} Nc6 {[%emt 0:00:19]} 6. O-O {[%emt 0:01:44]} Rb8 {[%emt 0:00:29]} 7. a4 {[%emt 0:03:08]} b6 {[%emt 0:01:43]} 8. Nc3 {[%emt 0:09:22]} Bb4 {[%emt 0:03:00]} 9. Bg5 {[%emt 0:07:32]} h6 {[%emt 0:04:10]} 10. Bxf6 {[%emt 0:05:07]} Qxf6 {[%emt 0:00:14]} 11. Nb5 {[%emt 0:04:10]} O-O {[%emt 0:04:29]} 12. Rc1 {[%emt 0:02:18]} a6 {[%emt 0:11:52]} 13. Rxc4 {[%emt 0:10:52]} axb5 {[%emt 0:02:30]} 14. axb5 {[%emt 0:11:37]} Qe7 {[%emt 0:08:02]} 15. bxc6 {[%emt 0:01:08]} Ba6 {[%emt 0:00:52]} 16. Rc1 {[%emt 0:01:17]} Rfd8 {[%emt 0:05:04]} 17. Qc2 {[%emt 0:02:05]} Bb5 {[%emt 0:08:42]} 18. Rfd1 {[%emt 0:02:32]} Ra8 {[%emt 0:03:20]} 19. Ra1 {[%emt 0:09:07]} Ra5 {[%emt 0:00:38]} 20. Rxa5 {[%emt 0:01:26]} bxa5 {[%emt 0:00:09]} 21. e3 {[%emt 0:00:53]} Rd6 {[%emt 0:02:00]} 22. Ne5 {[%emt 0:01:31]} Qe8 {[%emt 0:01:31]} 23. Rc1 {[%emt 0:02:09]} Rd8 {[%emt 0:03:29]} 24. Be4 {[%emt 0:03:04]} Rb8 {[%emt 0:05:17]} 25. h4 {[%emt 0:03:03]} Qe7 {[%emt 0:02:52]} 26. h5 {[%emt 0:02:13]} Bd6 {[%emt 0:01:55]} 27. Nd7 {[%emt 0:02:12]} Rd8 {[%emt 0:00:42]} 28. f4 {[%emt 0:01:09]} Bb4 {[%emt 0:01:53]} 29. Kg2 {[%emt 0:02:31]} Bd6 {[%emt 0:00:52]} 30. Bf3 {[%emt 0:01:48]} Bb4 {[%emt 0:00:50]} 31. g4 {[%emt 0:01:47]} Bd6 {[%emt 0:02:33]} 32. Rh1 {[%emt 0:01:35]} Kh8 {[%emt 0:03:00]} 33. Rh3 {[%emt 0:02:28]} Ra8 {[%emt 0:03:06]} 34. Rg3 {[%emt 0:02:47]} f6 {[%emt 0:05:48]} 35. Qg6 {[%emt 0:00:56]} Qe8 {[%emt 0:03:58]} 36. Qc2 {[%emt 0:00:51]} a4 {[%emt 0:01:48]} 37. Kh3 {[%emt 0:00:45]} a3 {[%emt 0:03:14]} 38. bxa3 {[%emt 0:00:03]} Rxa3 {[%emt 0:00:14]} 39. Be2 {[%emt 0:00:46]} Ba4 {[%emt 0:03:49]} 40. Qe4 {[%emt 0:00:35]} Bb3 {[%emt 0:02:44]} 41. Qb1 {[%emt 0:20:01]} Bd5 {[%emt 0:05:07]} 42. Qc1 {[%emt 0:07:05]} Qa8 {[%emt 0:04:57]} 43. Bf3 {[%emt 0:01:42]} Ra1 {[%emt 0:17:00]} 44. Qc2 {[%emt 0:02:52]} Qa6 {[%emt 0:03:56]} 45. Qg6 {[%emt 0:00:58]} Qf1+ {[%emt 0:03:08]} 46. Kh4 {[%emt 0:00:22]} Ra8 {[%emt 0:00:32]} 47. Nxf6 {[%emt 0:00:34]} gxf6 {[%emt 0:00:22]} 48. Qxh6+ {[%emt 0:00:23]} Kg8 {[%emt 0:00:05]} 49. Qg6+ {[%emt 0:00:19]} Kh8 {[%emt 0:00:54]} 50. Qh6+ {[%emt 0:00:25]} Kg8 {[%emt 0:00:01]} 51. Qg6+ {[%emt 0:00:34]} Kh8 {[%emt 0:00:01]} 52. h6 {[%emt 0:00:41]} Rg8 {[%emt 0:01:13]} 53. Qxf6+ {[%emt 0:00:01]} Kh7 {[%emt 0:00:18]} 54. Qf7+ {[%emt 0:00:31]} Kh8 {[%emt 0:00:00]} 55. Qf6+ {[%emt 0:00:18]} Kh7 {[%emt 0:00:01]} 56. Qf7+ {[%emt 0:00:48]} Kh8 {[%emt 0:00:01]} 57. Bxd5 {[%emt 0:00:42]} exd5 {[%emt 0:00:28]} 58. Qf6+ {[%emt 0:00:25]} Kh7 {[%emt 0:00:03]} 59. Qf7+ {[%emt 0:00:37]} Kh8 {[%emt 0:00:06]} 60. Qf6+ {[%emt 0:00:35]} 1/2-1/2

[Event "Summer Prague Open-A 2024"]
[Site "Prague"]
[Date "2024.08.04"]
[Round "4.27"]
[White "Korenova, Martina"]
[Black "Motyl, Tomasz"]
[Result "1/2-1/2"]
[Annotator "RC"]
[ECO "B13"]
[WhiteElo "2145"]
[BlackElo "1947"]
[PlyCount "130"]
[EventDate "2024.08.02"]
[EventType "swiss"]
[EventCountry "CZE"]
[SourceTitle "playchess.com"]
[Source "ChessBase"]
[SourceQuality "1"]
[TimeControl "40/5400+30:1800+30"]

1. e4 {[%emt 0:00:03]} c6 {[%emt 0:00:14]} 2. d4 {[%emt 0:00:20]} d5 {[%emt 0:00:11]} 3. exd5 {[%emt 0:00:34]} cxd5 {[%emt 0:00:08]} 4. Nf3 {[%emt 0:00:40]} Nc6 {[%emt 0:02:00]} 5. c3 {[%emt 0:00:17]} Nf6 {[%emt 0:00:56]} 6. Bd3 {[%emt 0:00:23]} Bg4 {[%emt 0:00:14]} 7. Qb3 {[%emt 0:01:18]} Na5 {[%emt 0:05:50]} 8. Qa4+ {[%emt 0:01:15]} Bd7 {[%emt 0:00:29]} 9. Qc2 {[%emt 0:00:27]} g6 {[%emt 0:11:46]} 10. Bg5 {[%emt 0:02:47]} Bg7 {[%emt 0:01:31]} 11. Ne5 {[%emt 0:07:04]} Nc6 {[%emt 0:03:11]} 12. Nxc6 {[%emt 0:04:12]} Bxc6 {[%emt 0:03:39]} 13. Nd2 {[%emt 0:00:20]} O-O {[%emt 0:02:46]} 14. h4 {[%emt 0:09:15]} Qd7 {[%emt 0:07:45]} 15. Bxf6 {[%emt 0:19:33]} Bxf6 {[%emt 0:14:00]} 16. h5 {[%emt 0:01:33]} e5 {[%emt 0:01:52]} 17. dxe5 {[%emt 0:01:30]} Bxe5 {[%emt 0:01:13]} 18. Nf3 {[%emt 0:06:55]} Bf4 {[%emt 0:06:04]} 19. Nd4 {[%emt 0:00:54]} Rae8+ {[%emt 0:02:07]} 20. Kf1 {[%emt 0:00:07]} Be5 {[%emt 0:00:55]} 21. a4 {[%emt 0:11:18]} Bxd4 {[%emt 0:13:49]} 22. cxd4 {[%emt 0:00:04]} Qd6 {[%emt 0:02:30]} 23. Qd2 {[%emt 0:01:44]} Qf6 {[%emt 0:01:33]} 24. Bc2 {[%emt 0:05:48]} Re7 {[%emt 0:00:30]} 25. Rh3 {[%emt 0:07:05]} Rfe8 {[%emt 0:05:31]} 26. hxg6 {[%emt 0:00:16]} fxg6 {[%emt 0:01:36]} 27. Rf3 {[%emt 0:00:29]} Qh4 {[%emt 0:00:51]} 28. Kg1 {[%emt 0:00:35]} Re2 {[%emt 0:01:31]} 29. Qc3 {[%emt 0:00:08]} Qe7 {[%emt 0:03:18]} 30. b3 {[%emt 0:01:28]} Bd7 {[%emt 0:01:55]} 31. Bd3 {[%emt 0:05:17]} Re1+ {[%emt 0:01:18]} 32. Rxe1 {[%emt 0:00:22]} Qxe1+ {[%emt 0:00:05]} 33. Qxe1 {[%emt 0:00:04]} Rxe1+ {[%emt 0:00:04]} 34. Kh2 {[%emt 0:00:03]} Bg4 {[%emt 0:01:46]} 35. Rg3 {[%emt 0:00:06]} Bd1 {[%emt 0:01:44]} 36. f4 {[%emt 0:00:13]} Kf7 {[%emt 0:02:00]} 37. f5 {[%emt 0:04:08]} gxf5 {[%emt 0:00:09]} 38. Bxf5 {[%emt 0:00:12]} h5 {[%emt 0:00:35]} 39. Bc8 {[%emt 0:02:24]} Re7 {[%emt 0:00:23]} 40. Rd3 {[%emt 0:00:39]} Bc2 {[%emt 0:01:06]} 41. Rc3 {[%emt 0:37:25]} Be4 {[%emt 0:03:31]} 42. a5 {[%emt 0:00:00]} Kf6 {[%emt 0:04:54]} 43. Rc5 {[%emt 0:00:00]} a6 {[%emt 0:05:51]} 44. b4 {[%emt 0:00:00]} Kg5 {[%emt 0:06:27]} 45. b5 {[%emt 0:00:00]} Kf4 {[%emt 0:01:04]} 46. b6 {[%emt 0:00:00]} Rg7 {[%emt 0:02:17]} 47. Bh3 {[%emt 0:00:00]} Rg3 {[%emt 0:00:36]} 48. Rc7 {[%emt 0:00:00]} Ra3 {[%emt 0:00:11]} 49. Rxb7 {[%emt 0:00:00]} Rxa5 {[%emt 0:00:09]} 50. Rf7+ {[%emt 0:00:00]} Ke3 {[%emt 0:00:29]} 51. Bd7 {[%emt 0:02:13]} Ra2 {[%emt 0:01:11]} 52. b7 {[%emt 0:00:25]} Rxg2+ {[%emt 0:00:36]} 53. Kh3 {[%emt 0:00:04]} Rb2 {[%emt 0:01:01]} 54. Bc6 {[%emt 0:01:26]} Kxd4 {[%emt 0:00:21]} 55. Rf8 {[%emt 0:01:15]} Kc5 {[%emt 0:01:09]} 56. Rc8 {[%emt 0:02:32]} Kd6 {[%emt 0:05:43]} 57. Kh4 {[%emt 0:00:08]} Bf5 {[%emt 0:01:04]} 58. Kxh5 {[%emt 0:00:53]} Rxb7 {[%emt 0:00:56]} 59. Bxb7 {[%emt 0:00:08]} Bxc8 {[%emt 0:00:06]} 60. Bxc8 {[%emt 0:00:05]} a5 {[%emt 0:00:09]} 61. Kg4 {[%emt 0:01:24]} a4 {[%emt 0:00:56]} 62. Bf5 {[%emt 0:00:08]} a3 {[%emt 0:00:39]} 63. Bb1 {[%emt 0:00:04]} Ke5 {[%emt 0:00:18]} 64. Kf3 {[%emt 0:00:12]} Kd4 {[%emt 0:00:23]} 65. Ba2 {[%emt 0:00:26]} Kc3 {[%emt 0:01:22]} 1/2-1/2

[Event "Summer Prague Open-A 2024"]
[Site "Prague"]
[Date "2024.08.04"]
[Round "4.28"]
[White "Persson, Andreas"]
[Black "Novotny, Dominik"]
[Result "1-0"]
[Annotator "RC"]
[ECO "D02"]
[WhiteElo "2139"]
[BlackElo "1936"]
[PlyCount "93"]
[EventDate "2024.08.02"]
[EventType "swiss"]
[EventCountry "CZE"]
[SourceTitle "playchess.com"]
[Source "ChessBase"]
[SourceQuality "1"]
[TimeControl "40/5400+30:1800+30"]

1. d4 {[%emt 0:00:04]} d5 {[%emt 0:00:14]} 2. Nf3 {[%emt 0:00:19]} e6 {[%emt 0:00:20]} 3. g3 {[%emt 0:00:30]} b6 {[%emt 0:00:19]} 4. Bg2 {[%emt 0:00:58]} Bb7 {[%emt 0:00:31]} 5. O-O {[%emt 0:01:04]} Nd7 {[%emt 0:03:15]} 6. c4 {[%emt 0:02:54]} dxc4 {[%emt 0:00:37]} 7. Qa4 {[%emt 0:03:11]} a6 {[%emt 0:02:16]} 8. Qxc4 {[%emt 0:00:35]} Ngf6 {[%emt 0:03:04]} 9. Bg5 {[%emt 0:06:03]} Be7 {[%emt 0:02:02]} 10. Nbd2 {[%emt 0:03:26]} O-O {[%emt 0:06:36]} 11. Rfe1 {[%emt 0:04:08]} c5 {[%emt 0:07:20]} 12. a4 {[%emt 0:09:32]} Rc8 {[%emt 0:05:02]} 13. Rad1 {[%emt 0:02:42]} b5 {[%emt 0:26:10]} 14. axb5 {[%emt 0:03:42]} Nb6 {[%emt 0:00:43]} 15. Qa2 {[%emt 0:02:47]} axb5 {[%emt 0:01:51]} 16. dxc5 {[%emt 0:07:40]} Rxc5 {[%emt 0:01:10]} 17. Be3 {[%emt 0:08:49]} Bxf3 {[%emt 0:15:50]} 18. Bxf3 {[%emt 0:05:36]} Rc8 {[%emt 0:01:08]} 19. Nc4 {[%emt 0:04:52]} Nbd5 {[%emt 0:00:49]} 20. Nb6 {[%emt 0:01:37]} Rc2 {[%emt 0:06:27]} 21. Qb3 {[%emt 0:02:16]} Qc7 {[%emt 0:01:53]} 22. Nxd5 {[%emt 0:00:08]} exd5 {[%emt 0:00:59]} 23. Bxd5 {[%emt 0:02:47]} Nxd5 {[%emt 0:03:15]} 24. Rxd5 {[%emt 0:00:13]} Bf6 {[%emt 0:01:26]} 25. Bd4 {[%emt 0:02:46]} Bxd4 {[%emt 0:00:24]} 26. Rxd4 {[%emt 0:00:25]} g6 {[%emt 0:00:17]} 27. Rd5 {[%emt 0:04:43]} Rc5 {[%emt 0:01:00]} 28. Red1 {[%emt 0:01:12]} Rxd5 {[%emt 0:01:23]} 29. Rxd5 {[%emt 0:00:59]} Rb8 {[%emt 0:01:07]} 30. Kg2 {[%emt 0:02:09]} Qc4 {[%emt 0:01:16]} 31. Qd3 {[%emt 0:03:53]} Qb4 {[%emt 0:02:05]} 32. b3 {[%emt 0:01:03]} Kg7 {[%emt 0:01:36]} 33. e4 {[%emt 0:02:58]} Qe7 {[%emt 0:00:52]} 34. Qd4+ {[%emt 0:01:53]} Kg8 {[%emt 0:00:20]} 35. Rd7 {[%emt 0:00:28]} Qe6 {[%emt 0:00:28]} 36. Qd5 {[%emt 0:01:11]} Re8 {[%emt 0:00:56]} 37. Qxe6 {[%emt 0:01:18]} Rxe6 {[%emt 0:00:02]} 38. Kf3 {[%emt 0:01:08]} Rc6 {[%emt 0:00:37]} 39. Ke3 {[%emt 0:00:18]} Kg7 {[%emt 0:00:42]} 40. Kd3 {[%emt 0:01:54]} Rc1 {[%emt 0:03:22]} 41. Rb7 {[%emt 0:30:23]} Rc5 {[%emt 0:01:36]} 42. b4 {[%emt 0:00:00]} Rh5 {[%emt 0:00:20]} 43. h4 {[%emt 0:00:00]} Kf6 {[%emt 0:01:19]} 44. Kd4 {[%emt 0:00:00]} Ke6 {[%emt 0:00:46]} 45. f4 {[%emt 0:00:00]} f6 {[%emt 0:01:53]} 46. Rb6+ {[%emt 0:00:00]} Ke7 {[%emt 0:00:27]} 47. Rc6 {[%emt 0:00:00]} 1-0